[Event "ONJK-B 2019"]
[Site "Borne"]
[Date "2019.08.09"]
[Round "7.1"]
[White "Maters, Arthur"]
[Black "Rogge, Parcival"]
[Result "1-0"]
[ECO "A45"]
[WhiteElo "2041"]
[BlackElo "1743"]
[Annotator "NA RC"]
[PlyCount "108"]
[EventDate "2019.08.05"]
[EventType "swiss"]
[EventCountry "NED"]
[SourceTitle "playchess.com"]
[Source "ChessBase"]
[SourceQuality "1"]
[TimeControl "5400+30"]

1. d4 {[%emt 0:00:00]} Nf6 {[%emt 0:00:00]} 2. Bf4 {[%emt 0:00:00]} g6 {[%emt 0:00:00]} 3. Nc3 {[%emt 0:00:00]} d5 {[%emt 0:00:07]} 4. e3 {[%emt 0:00:00]} Bg7 {[%emt 0:00:21]} 5. h4 {[%emt 0:00:00]} h5 {[%emt 0:03:34]} 6. Nf3 {[%emt 0:00:00]} a6 {[%emt 0:05:42]} 7. Qd2 {[%emt 0:00:58]} Nc6 {[%emt 0:01:03]} 8. Ne5 {[%emt 0:00:34]} Nd7 {[%emt 0:09:38]} 9. Nxd7 {[%emt 0:08:03]} Qxd7 {[%emt 0:01:06]} 10. Be2 {[%emt 0:00:16]} b5 {[%emt 0:04:58]} 11. O-O-O {[%emt 0:01:37]} (11. b4 $14) 11... b4 $15 {[%emt 0:05:55]} 12. Nb1 {[%emt 0:08:41]} a5 {[%emt 0:08:05]} 13. Rdg1 {[%emt 0:03:33]} Ba6 {[%emt 0:08:41]} 14. g4 {[%emt 0:08:07]} Bxe2 {[%emt 0:05:58]} 15. Qxe2 {[%emt 0:00:05]} hxg4 {[%emt 0:00:26]} 16. Rxg4 {[%emt 0:00:14]} e5 {[%emt 0:08:35]} 17. dxe5 {[%emt 0:00:18]} Nxe5 {[%emt 0:00:09]} 18. Bxe5 {[%emt 0:00:05]} Bxe5 {[%emt 0:00:10]} 19. e4 {[%emt 0:00:05]} O-O-O {[%emt 0:03:25]} 20. Nd2 {[%emt 0:18:54]} dxe4 {[%emt 0:13:19]} 21. Rxe4 {[%emt 0:14:17]} Bxb2+ {[%emt 0:03:24]} 22. Kxb2 {[%emt 0:00:22]} Qxd2 {[%emt 0:00:07]} 23. Qa6+ {[%emt 0:00:13]} Kb8 {[%emt 0:00:58]} 24. Qxa5 {[%emt 0:01:02]} Rd4 {[%emt 0:01:07]} 25. Re5 {[%emt 0:05:26]} Qc3+ {[%emt 0:04:27]} 26. Kb1 {[%emt 0:00:29]} Rhxh4 {[%emt 0:04:37]} 27. Rhe1 {[%emt 0:07:50]} Rh5 {[%emt 0:02:37]} 28. Re8+ {[%emt 0:05:12]} Kb7 {[%emt 0:00:07]} 29. Qa8+ {[%emt 0:00:18]} Kb6 {[%emt 0:00:08]} 30. Rb8+ {[%emt 0:03:49]} Kc5 {[%emt 0:00:06]} 31. Qa5+ {[%emt 0:00:23]} Kd6 {[%emt 0:01:20]} 32. Qa6+ {[%emt 0:02:19]} c6 {[%emt 0:03:05]} 33. Rd8+ {[%emt 0:01:31]} Kc5 {[%emt 0:01:33]} 34. Rc1 {[%emt 0:04:42]} Rxd8 {[%emt 0:00:51]} 35. Qa5+ {[%emt 0:00:17]} Kd6 {[%emt 0:00:12]} 36. Qxd8+ {[%emt 0:00:16]} Ke6 {[%emt 0:00:16]} 37. Rd1 {[%emt 0:01:23]} Rd5 {[%emt 0:01:16]} 38. Qe8+ {[%emt 0:01:59]} Kf6 {[%emt 0:00:11]} 39. Qh8+ {[%emt 0:00:36]} Ke6 {[%emt 0:00:14]} 40. Qc8+ {[%emt 0:01:47]} Kf6 {[%emt 0:00:35]} 41. Qh8+ {[%emt 0:01:06]} Ke6 {[%emt 0:00:06]} 42. Qe8+ {[%emt 0:00:14]} Kf6 {[%emt 0:00:06]} 43. Rxd5 {[%emt 0:01:14]} cxd5 {[%emt 0:00:13]} 44. Qh8+ {[%emt 0:00:04]} Ke6 {[%emt 0:00:05]} 45. Qxc3 {[%emt 0:00:36]} bxc3 {[%emt 0:00:05]} 46. a4 {[%emt 0:00:03]} Kd6 {[%emt 0:00:53]} 47. Ka2 {[%emt 0:00:08]} Kc5 {[%emt 0:00:38]} 48. Kb3 {[%emt 0:00:04]} d4 {[%emt 0:00:08]} 49. a5 {[%emt 0:01:20]} Kb5 {[%emt 0:00:43]} 50. a6 {[%emt 0:00:04]} Kxa6 {[%emt 0:00:04]} 51. Kc4 {[%emt 0:00:05]} g5 {[%emt 0:01:42]} 52. Kxd4 {[%emt 0:00:06]} Kb5 {[%emt 0:00:10]} 53. Kxc3 {[%emt 0:00:08]} f5 {[%emt 0:00:32]} 54. Kd4 {[%emt 0:00:15]} g4 {[%emt 0:01:00] Ke4} 1-0

[Event "ONJK-B 2019"]
[Site "Borne"]
[Date "2019.08.09"]
[Round "7.2"]
[White "Mainka, Alwin"]
[Black "Baselmans, Daan"]
[Result "1/2-1/2"]
[ECO "C10"]
[WhiteElo "1989"]
[BlackElo "1720"]
[Annotator "NA RC"]
[PlyCount "54"]
[EventDate "2019.08.05"]
[EventType "swiss"]
[EventCountry "NED"]
[SourceTitle "playchess.com"]
[Source "ChessBase"]
[SourceQuality "1"]
[TimeControl "5400+30"]

1. e4 {[%emt 0:00:00]} e6 {[%emt 0:00:00]} 2. d4 {[%emt 0:00:00]} d5 {[%emt 0:00:00]} 3. Nd2 {[%emt 0:00:00]} dxe4 {[%emt 0:00:00]} 4. Nxe4 {[%emt 0:00:00]} Be7 {[%emt 0:00:00]} 5. c3 {[%emt 0:00:34]} Nf6 {[%emt 0:00:00]} 6. Nxf6+ {[%emt 0:00:35]} Bxf6 {[%emt 0:00:02]} 7. Nf3 {[%emt 0:00:05]} Nd7 {[%emt 0:00:04]} 8. Be3 {[%emt 0:00:23]} b6 {[%emt 0:00:30]} 9. Bd3 {[%emt 0:00:10]} Bb7 {[%emt 0:00:08]} 10. Bc2 {[%emt 0:00:19]} Rc8 {[%emt 0:01:24]} 11. O-O {[%emt 0:01:43]} O-O {[%emt 0:00:54]} 12. Qe2 {[%emt 0:05:09]} c5 {[%emt 0:00:37]} 13. Rad1 {[%emt 0:07:24]} Qc7 {[%emt 0:00:59]} 14. Ng5 {[%emt 0:11:30]} g6 {[%emt 0:14:38]} 15. Ne4 $11 {[%emt 0:02:43]} Bg7 {[%emt 0:05:34]} 16. dxc5 {[%emt 0:00:16]} Nxc5 {[%emt 0:03:30]} 17. Bxc5 {[%emt 0:01:14]} bxc5 {[%emt 0:00:40]} 18. Nd6 {[%emt 0:00:10]} Rb8 {[%emt 0:04:46]} 19. Nxb7 {[%emt 0:00:18]} Qxb7 {[%emt 0:00:20]} 20. Bb3 {[%emt 0:00:09]} Rfd8 {[%emt 0:01:41]} 21. Rd3 {[%emt 0:12:08]} Rxd3 {[%emt 0:02:16]} 22. Qxd3 {[%emt 0:01:17]} Qc7 {[%emt 0:00:51]} 23. Qe2 {[%emt 0:07:50]} Rd8 {[%emt 0:01:54]} 24. g3 {[%emt 0:00:26]} Bh6 {[%emt 0:08:29]} 25. f4 {[%emt 0:03:51]} Bf8 {[%emt 0:02:22]} 26. Bc4 {[%emt 0:04:50]} Qb7 {[%emt 0:04:10]} 27. g4 {[%emt 0:06:31]} Rd6 {[%emt 0:04:58]} 1/2-1/2

[Event "ONJK-B 2019"]
[Site "Borne"]
[Date "2019.08.09"]
[Round "7.3"]
[White "Hubers, Daan"]
[Black "Arnold, Kiri"]
[Result "0-1"]
[ECO "A05"]
[WhiteElo "1512"]
[BlackElo "1555"]
[Annotator "NA RC"]
[PlyCount "100"]
[EventDate "2019.08.05"]
[EventType "swiss"]
[EventCountry "NED"]
[SourceTitle "playchess.com"]
[Source "ChessBase"]
[SourceQuality "1"]
[TimeControl "5400+30"]

1. e3 {[%emt 0:00:00]} Nf6 {[%emt 0:00:00]} 2. Nf3 {[%emt 0:00:00]} g6 {[%emt 0:00:09]} 3. b3 {[%emt 0:00:29]} Bg7 {[%emt 0:00:21]} 4. Bb2 {[%emt 0:00:06]} O-O {[%emt 0:00:28]} 5. Nc3 {[%emt 0:00:39]} c5 {[%emt 0:01:35]} 6. Ne2 {[%emt 0:01:28]} Nc6 {[%emt 0:01:38]} 7. d4 {[%emt 0:01:32]} cxd4 {[%emt 0:06:12]} 8. Nexd4 {[%emt 0:02:25]} d5 {[%emt 0:02:02]} 9. Bb5 {[%emt 0:06:41]} Qb6 {[%emt 0:05:51]} 10. a4 {[%emt 0:14:04]} a6 {[%emt 0:03:19]} 11. Be2 {[%emt 0:04:10]} Bg4 {[%emt 0:13:19]} 12. O-O {[%emt 0:02:18]} Rac8 {[%emt 0:01:18]} 13. Rc1 {[%emt 0:05:06]} Rfd8 {[%emt 0:01:39]} 14. Ba3 {[%emt 0:02:47]} e6 {[%emt 0:03:25]} 15. Nxc6 {[%emt 0:08:46]} bxc6 {[%emt 0:01:38]} 16. Qe1 {[%emt 0:05:46]} Ne4 {[%emt 0:04:48]} 17. a5 {[%emt 0:01:18]} Qb7 {[%emt 0:00:41]} 18. h3 {[%emt 0:10:03]} Bc3 {[%emt 0:06:05]} 19. Qd1 {[%emt 0:00:12]} Bxf3 {[%emt 0:01:41]} 20. gxf3 {[%emt 0:01:23]} Nd2 {[%emt 0:07:07]} 21. Re1 {[%emt 0:00:44]} Qc7 {[%emt 0:05:04]} 22. Bc5 {[%emt 0:11:10]} Qxa5 {[%emt 0:04:10]} 23. Bd4 {[%emt 0:03:35]} Ra8 {[%emt 0:04:16]} 24. Bxc3 {[%emt 0:00:56]} Qxc3 {[%emt 0:00:06]} 25. Ra1 {[%emt 0:02:12]} c5 {[%emt 0:02:12]} 26. Rxa6 {[%emt 0:01:07]} Nxf3+ {[%emt 0:01:14]} 27. Kf1 {[%emt 0:00:55]} Qxe1+ {[%emt 0:00:17]} 28. Qxe1 {[%emt 0:00:05]} Nxe1 {[%emt 0:00:08]} 29. Kxe1 {[%emt 0:00:05]} Rxa6 {[%emt 0:00:04]} 30. Bxa6 {[%emt 0:00:04]} Ra8 {[%emt 0:00:18]} 31. Be2 {[%emt 0:00:13]} Ra1+ {[%emt 0:00:14]} 32. Kd2 {[%emt 0:00:03]} Rh1 {[%emt 0:00:23]} 33. c3 {[%emt 0:00:05]} Kf8 {[%emt 0:00:56]} 34. b4 {[%emt 0:00:06]} cxb4 {[%emt 0:00:14]} 35. cxb4 {[%emt 0:00:05]} Rb1 {[%emt 0:00:56]} 36. b5 {[%emt 0:00:14]} Ke7 {[%emt 0:02:45]} 37. Kc2 {[%emt 0:00:47]} Ra1 {[%emt 0:00:16]} 38. Kb3 {[%emt 0:00:49]} Kd6 {[%emt 0:00:17]} 39. Kc3 {[%emt 0:00:45]} Kc5 {[%emt 0:00:24]} 40. f3 {[%emt 0:00:41]} e5 {[%emt 0:00:47]} 41. Kd2 {[%emt 0:00:40]} Ra2+ {[%emt 0:00:12]} 42. Ke1 {[%emt 0:00:12]} Rxe2+ {[%emt 0:00:08]} 43. Kxe2 {[%emt 0:00:05]} Kxb5 {[%emt 0:00:02]} 44. Kd3 {[%emt 0:00:07]} Kc5 {[%emt 0:00:05]} 45. h4 {[%emt 0:00:32]} f5 {[%emt 0:00:16]} 46. Kc3 {[%emt 0:00:48]} d4+ {[%emt 0:00:10]} 47. exd4+ {[%emt 0:00:05]} exd4+ {[%emt 0:00:01]} 48. Kd3 {[%emt 0:00:08]} Kd5 {[%emt 0:00:03]} 49. f4 {[%emt 0:00:05]} Kc5 {[%emt 0:00:10]} 50. Kd2 {[%emt 0:00:07]} Kc4 {[%emt 0:00:21]} 0-1

[Event "ONJK-B 2019"]
[Site "Borne"]
[Date "2019.08.09"]
[Round "7.4"]
[White "Nopper, Louis"]
[Black "Klaren, Oscar"]
[Result "1/2-1/2"]
[ECO "A22"]
[WhiteElo "1579"]
[BlackElo "1737"]
[Annotator "NA RC"]
[PlyCount "55"]
[EventDate "2019.08.05"]
[EventType "swiss"]
[EventCountry "NED"]
[SourceTitle "playchess.com"]
[Source "ChessBase"]
[SourceQuality "1"]
[TimeControl "5400+30"]

1. c4 {[%emt 0:01:02]} e5 {[%emt 0:00:00]} 2. Nc3 {[%emt 0:00:15]} Nf6 {[%emt 0:00:00]} 3. e3 {[%emt 0:00:11]} Bb4 {[%emt 0:00:03]} 4. Nge2 {[%emt 0:06:37]} O-O {[%emt 0:04:45]} 5. a3 {[%emt 0:03:00]} Bxc3 {[%emt 0:00:41]} 6. Nxc3 {[%emt 0:00:12]} d5 {[%emt 0:01:24]} 7. cxd5 {[%emt 0:00:16]} Nxd5 {[%emt 0:00:08]} 8. Be2 {[%emt 0:01:30]} c5 {[%emt 0:05:53]} 9. O-O {[%emt 0:03:29]} Re8 {[%emt 0:03:17]} 10. Qb3 {[%emt 0:04:08]} Nb6 {[%emt 0:02:50]} 11. Qc2 {[%emt 0:04:35]} Nc6 {[%emt 0:02:02]} 12. Rb1 {[%emt 0:03:52]} Qe7 {[%emt 0:02:40]} 13. Bf3 {[%emt 0:06:57]} Be6 {[%emt 0:01:16]} 14. d3 {[%emt 0:07:12]} Rad8 {[%emt 0:01:21]} 15. b3 {[%emt 0:07:44]} Qd7 {[%emt 0:15:47]} 16. Ne4 {[%emt 0:07:35]} c4 {[%emt 0:08:13]} 17. bxc4 {[%emt 0:12:31]} Qxd3 {[%emt 0:00:25]} 18. Qxd3 {[%emt 0:01:55]} Rxd3 {[%emt 0:00:16]} 19. Be2 {[%emt 0:01:17]} Rd7 {[%emt 0:04:10]} 20. Nc5 {[%emt 0:03:25]} Rc7 {[%emt 0:00:40]} 21. Nxe6 {[%emt 0:00:39]} Rxe6 {[%emt 0:00:12]} 22. Bd2 {[%emt 0:02:08]} Rd6 {[%emt 0:01:07]} 23. c5 {[%emt 0:04:06]} Rxd2 {[%emt 0:00:14]} 24. cxb6 {[%emt 0:00:11]} axb6 {[%emt 0:00:06]} 25. Bf3 {[%emt 0:00:10]} Rd3 {[%emt 0:01:04]} 26. Rxb6 {[%emt 0:00:27]} Rxa3 {[%emt 0:00:13]} 27. Rfb1 {[%emt 0:00:30]} Na5 {[%emt 0:01:35]} 28. h3 {[%emt 0:00:53]} 1/2-1/2

[Event "ONJK-B 2019"]
[Site "Borne"]
[Date "2019.08.09"]
[Round "7.5"]
[White "Olree, Alex"]
[Black "De Putter, Nina"]
[Result "0-1"]
[ECO "E04"]
[WhiteElo "1411"]
[BlackElo "1631"]
[Annotator "NA RC"]
[PlyCount "74"]
[EventDate "2019.08.05"]
[EventType "swiss"]
[EventCountry "NED"]
[SourceTitle "playchess.com"]
[Source "ChessBase"]
[SourceQuality "1"]
[TimeControl "5400+30"]

1. d4 {[%emt 0:00:00]} d5 {[%emt 0:00:00]} 2. c4 {[%emt 0:00:00]} e6 {[%emt 0:00:00]} 3. Nf3 {[%emt 0:00:00]} Nf6 {[%emt 0:00:00]} 4. g3 {[%emt 0:00:00]} c5 {[%emt 0:00:09]} 5. Bg2 {[%emt 0:00:00]} Nc6 {[%emt 0:02:24]} 6. O-O {[%emt 0:01:53]} dxc4 {[%emt 0:05:52]} 7. Qa4 {[%emt 0:00:31]} Qd7 {[%emt 0:17:04]} 8. dxc5 {[%emt 0:08:39]} Bxc5 {[%emt 0:05:17]} 9. Rd1 {[%emt 0:00:56]} Qc7 {[%emt 0:06:20]} 10. Ne5 {[%emt 0:21:59]} Qxe5 {[%emt 0:05:09]} 11. Bxc6+ {[%emt 0:00:08]} Ke7 {[%emt 0:03:58]} 12. Bf3 {[%emt 0:06:35]} b5 {[%emt 0:12:30]} 13. Qa5 {[%emt 0:00:01]} Bb6 {[%emt 0:12:20]} 14. Qb4+ {[%emt 0:00:02]} Bc5 {[%emt 0:00:30]} 15. Bf4 {[%emt 0:01:48]} Bxb4 {[%emt 0:03:16]} 16. Bxe5 {[%emt 0:00:02]} Nd5 {[%emt 0:00:51]} 17. Bxg7 {[%emt 0:02:29]} Rd8 {[%emt 0:00:57]} 18. e4 {[%emt 0:01:14]} Nb6 {[%emt 0:00:51]} 19. Bf6+ {[%emt 0:00:06]} Kxf6 {[%emt 0:00:54]} 20. Rxd8 {[%emt 0:00:03]} Ke7 {[%emt 0:01:07]} 21. Rh8 {[%emt 0:02:37]} Bb7 {[%emt 0:02:22]} 22. Rxa8 {[%emt 0:01:02]} Bxa8 {[%emt 0:00:29]} 23. Na3 {[%emt 0:09:12]} Bxa3 {[%emt 0:06:24]} 24. bxa3 {[%emt 0:00:02]} f5 {[%emt 0:01:03]} 25. Kf1 {[%emt 0:01:32]} fxe4 {[%emt 0:02:13]} 26. Be2 {[%emt 0:01:51]} Na4 {[%emt 0:03:42]} 27. Ke1 {[%emt 0:07:09]} Nc5 {[%emt 0:01:36]} 28. Kd2 {[%emt 0:03:40]} Kd6 {[%emt 0:04:04]} 29. Ke3 {[%emt 0:01:22]} Ke5 {[%emt 0:00:38]} 30. Rb1 {[%emt 0:01:04]} a6 {[%emt 0:00:16]} 31. Bd1 {[%emt 0:00:20]} Nd3 {[%emt 0:00:43]} 32. Bc2 {[%emt 0:00:37]} Bc6 {[%emt 0:01:38]} 33. a4 {[%emt 0:05:04]} h6 {[%emt 0:01:17]} 34. axb5 {[%emt 0:05:36]} axb5 {[%emt 0:00:07]} 35. f3 {[%emt 0:00:05]} exf3 {[%emt 0:00:56]} 36. Bxd3 {[%emt 0:00:12]} cxd3 {[%emt 0:00:00]} 37. Kxd3 {[%emt 0:00:26]} Be4+ {[%emt 0:00:02] Kd4+} 0-1

[Event "ONJK-B 2019"]
[Site "Borne"]
[Date "2019.08.09"]
[Round "7.6"]
[White "Heskes, Johan"]
[Black "Molanus, Lennart"]
[Result "0-1"]
[ECO "A68"]
[WhiteElo "1535"]
[BlackElo "1619"]
[Annotator "NA RC"]
[PlyCount "70"]
[EventDate "2019.08.05"]
[EventType "swiss"]
[EventCountry "NED"]
[SourceTitle "playchess.com"]
[Source "ChessBase"]
[SourceQuality "1"]
[TimeControl "5400+30"]

1. d4 {[%emt 0:00:00]} Nf6 {[%emt 0:00:00]} 2. c4 {[%emt 0:00:00]} g6 {[%emt 0:00:00]} 3. Nc3 {[%emt 0:00:00]} Bg7 {[%emt 0:00:00]} 4. e4 {[%emt 0:00:00]} d6 {[%emt 0:00:00]} 5. f4 {[%emt 0:00:03]} O-O {[%emt 0:00:48]} 6. Nf3 {[%emt 0:00:24]} c5 {[%emt 0:00:11]} 7. d5 {[%emt 0:00:13]} e6 {[%emt 0:00:34]} 8. Bd3 {[%emt 0:00:36]} exd5 {[%emt 0:00:22]} 9. cxd5 {[%emt 0:00:08]} Re8 {[%emt 0:00:21]} 10. O-O {[%emt 0:00:54]} Nbd7 {[%emt 0:02:08]} 11. h3 {[%emt 0:01:31]} Rb8 {[%emt 0:14:42]} 12. Qc2 {[%emt 0:04:57]} Qc7 {[%emt 0:03:59]} 13. Bc4 {[%emt 0:18:41]} a6 {[%emt 0:00:45]} 14. a4 {[%emt 0:00:18]} Nb6 {[%emt 0:04:52]} 15. Be2 {[%emt 0:03:19]} Nbd7 {[%emt 0:02:12]} 16. Bc4 {[%emt 0:02:51]} Nb6 {[%emt 0:01:14]} 17. Be2 {[%emt 0:00:47]} c4 {[%emt 0:00:04]} 18. a5 {[%emt 0:04:25]} Nbd7 {[%emt 0:00:12]} 19. Nd2 {[%emt 0:00:34]} b5 {[%emt 0:21:18]} 20. axb6 {[%emt 0:02:03]} Nxb6 {[%emt 0:00:19]} 21. Na4 {[%emt 0:01:16]} Bd7 {[%emt 0:02:00]} 22. Nxb6 {[%emt 0:02:13]} Qxb6+ {[%emt 0:00:56]} 23. Kh1 {[%emt 0:00:39]} Bb5 {[%emt 0:01:07]} 24. Bxc4 {[%emt 0:07:58]} Qc5 {[%emt 0:05:50]} 25. Rb1 {[%emt 0:06:15]} Nxe4 {[%emt 0:04:32]} 26. Nxe4 {[%emt 0:00:57]} Qxc4 {[%emt 0:01:54]} 27. Qxc4 {[%emt 0:01:19]} Bxc4 {[%emt 0:00:05]} 28. Nxd6 {[%emt 0:00:15]} Bxf1 {[%emt 0:00:06]} 29. Nxe8 {[%emt 0:00:05]} Rxe8 {[%emt 0:00:06]} 30. Bd2 {[%emt 0:00:13]} Bd3 {[%emt 0:00:37]} 31. Rc1 {[%emt 0:00:33]} Bxb2 {[%emt 0:00:42]} 32. Rc6 {[%emt 0:00:29]} Re2 {[%emt 0:01:26]} 33. d6 {[%emt 0:02:59]} Rxd2 {[%emt 0:04:02]} 34. d7 {[%emt 0:00:47]} Bf6 {[%emt 0:03:37]} 35. Rxf6 {[%emt 0:01:11]} Bb5 {[%emt 0:00:49]} 0-1

[Event "ONJK-B 2019"]
[Site "Borne"]
[Date "2019.08.09"]
[Round "7.7"]
[White "Klein, Lucas"]
[Black "Albertus, Bram"]
[Result "0-1"]
[ECO "A90"]
[WhiteElo "1481"]
[BlackElo "1841"]
[Annotator "NA RC"]
[PlyCount "62"]
[EventDate "2019.08.05"]
[EventType "swiss"]
[EventCountry "NED"]
[SourceTitle "playchess.com"]
[Source "ChessBase"]
[SourceQuality "1"]
[TimeControl "5400+30"]

1. d4 {[%emt 0:00:00]} f5 {[%emt 0:00:00]} 2. g3 {[%emt 0:00:20]} Nf6 {[%emt 0:00:00]} 3. Bg2 {[%emt 0:00:51]} e6 {[%emt 0:00:00]} 4. c4 {[%emt 0:00:37]} d5 {[%emt 0:00:00]} 5. Nh3 {[%emt 0:01:32]} c6 {[%emt 0:00:50]} 6. O-O {[%emt 0:00:55]} Bd6 {[%emt 0:06:09]} 7. Bf4 {[%emt 0:00:52]} Bxf4 {[%emt 0:06:56]} 8. Nxf4 {[%emt 0:00:37]} g5 {[%emt 0:00:42]} 9. Nd3 {[%emt 0:02:08]} Nbd7 {[%emt 0:02:09]} 10. Nd2 {[%emt 0:02:05]} h5 $14 {[%emt 0:09:17]} 11. Qc1 {[%emt 0:28:59]} h4 {[%emt 0:15:56]} 12. Nf3 {[%emt 0:03:19]} hxg3 {[%emt 0:07:01]} 13. hxg3 {[%emt 0:04:47]} Ne4 {[%emt 0:01:04]} 14. c5 {[%emt 0:10:50]} Qf6 {[%emt 0:02:17]} 15. Qe3 {[%emt 0:03:09]} Qh6 {[%emt 0:04:06]} 16. b4 {[%emt 0:04:10]} f4 {[%emt 0:06:44]} 17. Nxf4 {[%emt 0:04:30]} gxf4 {[%emt 0:00:49]} 18. Qxf4 {[%emt 0:00:28]} Qxf4 {[%emt 0:00:55]} 19. gxf4 {[%emt 0:00:09]} Ndf6 {[%emt 0:01:49]} 20. Ng5 {[%emt 0:02:04]} Rg8 {[%emt 0:01:06]} 21. Nh3 {[%emt 0:04:08]} Bd7 {[%emt 0:00:33]} 22. f3 {[%emt 0:01:15]} Nd2 {[%emt 0:02:22]} 23. Rfe1 {[%emt 0:00:50]} Nc4 {[%emt 0:01:37]} 24. e3 {[%emt 0:01:02]} O-O-O {[%emt 0:03:21]} 25. Kf2 {[%emt 0:00:56]} Rg7 {[%emt 0:01:22]} 26. Ng5 {[%emt 0:00:54]} Nh7 {[%emt 0:03:07]} 27. Nxh7 {[%emt 0:00:45]} Rxh7 {[%emt 0:00:00]} 28. e4 {[%emt 0:00:59]} Rf8 {[%emt 0:02:21]} 29. Rh1 {[%emt 0:02:22]} Rxh1 {[%emt 0:03:50]} 30. Rxh1 {[%emt 0:00:09]} Rxf4 {[%emt 0:00:08]} 31. Rh8+ {[%emt 0:00:42]} Kc7 {[%emt 0:00:13]} 0-1

[Event "ONJK-B 2019"]
[Site "Borne"]
[Date "2019.08.09"]
[Round "7.9"]
[White "Lauwers, Timo"]
[Black "Van Weerden, Jur"]
[Result "1-0"]
[ECO "E70"]
[WhiteElo "1364"]
[BlackElo "1676"]
[Annotator "NA RC"]
[PlyCount "93"]
[EventDate "2019.08.05"]
[EventType "swiss"]
[EventCountry "NED"]
[SourceTitle "playchess.com"]
[Source "ChessBase"]
[SourceQuality "1"]
[TimeControl "5400+30"]

1. d4 {[%emt 0:00:00]} c5 {[%emt 0:00:00]} 2. d5 {[%emt 0:00:00]} Nf6 {[%emt 0:00:00]} 3. c4 {[%emt 0:00:00]} g6 {[%emt 0:00:00]} 4. Nc3 {[%emt 0:00:31]} Bg7 {[%emt 0:00:00]} 5. e4 {[%emt 0:00:27]} O-O {[%emt 0:00:08]} 6. e5 {[%emt 0:03:21]} Ne8 {[%emt 0:00:28]} 7. f4 {[%emt 0:02:03]} d6 {[%emt 0:00:19]} 8. Nf3 {[%emt 0:00:25]} Nd7 {[%emt 0:00:46]} 9. Qe2 {[%emt 0:03:30]} dxe5 {[%emt 0:02:05]} 10. fxe5 {[%emt 0:03:02]} h6 {[%emt 0:02:16]} 11. e6 {[%emt 0:03:52]} Ndf6 {[%emt 0:01:12]} 12. exf7+ {[%emt 0:00:34]} Rxf7 {[%emt 0:00:38]} 13. Ne5 {[%emt 0:01:28]} Bf5 {[%emt 0:01:34]} 14. g4 {[%emt 0:01:39]} Nxg4 {[%emt 0:03:26]} 15. Nxg4 {[%emt 0:01:14]} Bxg4 {[%emt 0:00:07]} 16. Qxg4 {[%emt 0:00:29]} Qd6 {[%emt 0:00:27]} 17. Bd2 {[%emt 0:01:47]} Qf6 {[%emt 0:01:08]} 18. O-O-O {[%emt 0:05:48]} Nd6 {[%emt 0:00:30]} 19. Bd3 {[%emt 0:01:20]} Nf5 {[%emt 0:03:48]} 20. Bxf5 {[%emt 0:01:00]} gxf5 {[%emt 0:00:30]} 21. Qf4 {[%emt 0:02:45]} Kh7 {[%emt 0:01:21]} 22. Rhf1 {[%emt 0:01:45]} Raf8 {[%emt 0:00:37]} 23. Be1 {[%emt 0:04:59]} a6 {[%emt 0:04:06]} 24. Na4 {[%emt 0:07:28]} Qg6 {[%emt 0:04:32]} 25. Bc3 {[%emt 0:01:16]} Qg5 {[%emt 0:01:22]} 26. Bxg7 {[%emt 0:00:26]} Qxf4+ {[%emt 0:00:10]} 27. Rxf4 {[%emt 0:00:09]} Rxg7 {[%emt 0:00:07]} 28. Nxc5 {[%emt 0:00:26]} h5 {[%emt 0:00:38]} 29. Ne6 {[%emt 0:00:20]} Rfg8 {[%emt 0:00:44]} 30. Nxg7 {[%emt 0:00:11]} Rxg7 {[%emt 0:00:06]} 31. Rxf5 {[%emt 0:00:14]} Kh6 {[%emt 0:00:25]} 32. d6 {[%emt 0:00:16]} exd6 {[%emt 0:00:04]} 33. Rxd6+ {[%emt 0:00:09]} Rg6 {[%emt 0:00:07]} 34. Rff6 {[%emt 0:00:20]} Rxf6 {[%emt 0:00:09]} 35. Rxf6+ {[%emt 0:00:05]} Kg5 {[%emt 0:00:53]} 36. Rb6 {[%emt 0:00:07]} Kg4 {[%emt 0:00:10]} 37. Rxb7 {[%emt 0:00:07]} h4 {[%emt 0:00:17]} 38. Rg7+ {[%emt 0:00:17]} Kf3 {[%emt 0:00:09]} 39. c5 {[%emt 0:01:09]} a5 {[%emt 0:00:14]} 40. Re7 {[%emt 0:00:55]} a4 {[%emt 0:00:28]} 41. Kd2 {[%emt 0:00:12]} a3 {[%emt 0:00:07]} 42. b4 {[%emt 0:00:11]} h3 {[%emt 0:00:20]} 43. Re3+ {[%emt 0:00:34]} Kg2 {[%emt 0:00:21]} 44. Ke2 {[%emt 0:02:40]} Kh1 {[%emt 0:00:22]} 45. Kf2 {[%emt 0:00:19]} Kxh2 {[%emt 0:00:10]} 46. Rxa3 {[%emt 0:00:12]} Kh1 {[%emt 0:00:07]} 47. Rxh3# {[%emt 0:00:34]} 1-0

[Event "ONJK-B 2019"]
[Site "Borne"]
[Date "2019.08.09"]
[Round "7.10"]
[White "Borgelioen, Elise"]
[Black "Neirynck, Arthur"]
[Result "1/2-1/2"]
[ECO "C02"]
[WhiteElo "1342"]
[BlackElo "1514"]
[Annotator "NA RC"]
[PlyCount "61"]
[EventDate "2019.08.05"]
[EventType "swiss"]
[EventCountry "NED"]
[SourceTitle "playchess.com"]
[Source "ChessBase"]
[SourceQuality "1"]
[TimeControl "5400+30"]

1. e4 {[%emt 0:00:00]} e6 {[%emt 0:00:45]} 2. d4 {[%emt 0:00:01]} d5 {[%emt 0:00:32]} 3. e5 {[%emt 0:00:36]} c5 {[%emt 0:00:12]} 4. Nf3 {[%emt 0:03:06]} cxd4 {[%emt 0:04:54]} 5. Nxd4 {[%emt 0:07:29]} Nc6 {[%emt 0:02:58]} 6. Bb5 {[%emt 0:03:45]} Bd7 {[%emt 0:05:03]} 7. Bxc6 {[%emt 0:04:38]} bxc6 {[%emt 0:03:07]} 8. c3 {[%emt 0:03:46]} Ne7 {[%emt 0:03:50]} 9. Bg5 {[%emt 0:06:42]} Qc7 {[%emt 0:02:45]} 10. Qe2 {[%emt 0:06:42]} c5 {[%emt 0:03:11]} 11. Nf3 {[%emt 0:02:59]} Rb8 {[%emt 0:03:06]} 12. Na3 {[%emt 0:03:26]} Ng6 {[%emt 0:08:04]} 13. O-O {[%emt 0:07:43]} h6 {[%emt 0:02:17]} 14. Bc1 {[%emt 0:01:42]} Be7 {[%emt 0:04:47]} 15. Re1 {[%emt 0:03:53]} O-O {[%emt 0:01:04]} 16. b3 {[%emt 0:04:42]} f6 {[%emt 0:05:09]} 17. Bb2 {[%emt 0:06:56]} fxe5 {[%emt 0:08:21]} 18. Nxe5 {[%emt 0:02:24]} Nxe5 {[%emt 0:02:11]} 19. Qxe5 {[%emt 0:01:04]} Bd6 {[%emt 0:01:12]} 20. Qh5 {[%emt 0:03:38]} Rf5 {[%emt 0:02:59]} 21. Qh4 {[%emt 0:01:58]} Rbf8 {[%emt 0:03:00]} 22. Re2 {[%emt 0:03:03]} Rg5 {[%emt 0:07:19]} 23. Bc1 {[%emt 0:02:47]} Rgf5 {[%emt 0:03:50]} 24. Be3 {[%emt 0:01:12]} Bf4 {[%emt 0:08:32]} 25. Qh3 {[%emt 0:02:19]} Qa5 {[%emt 0:04:04]} 26. Bxf4 {[%emt 0:00:57]} Rxf4 {[%emt 0:00:46]} 27. Nc2 {[%emt 0:00:17]} Qd8 {[%emt 0:01:03]} 28. Qe3 {[%emt 0:00:53]} Qc7 {[%emt 0:01:13]} 29. Rd1 {[%emt 0:00:42]} Bc8 {[%emt 0:01:30]} 30. Ne1 {[%emt 0:00:40]} Qd6 {[%emt 0:02:47]} 31. Nf3 {[%emt 0:00:21]} 1/2-1/2